Cogmind - Beta 15 @@@ ROGUE MODE // 2025.06.27 @ 19:41:05 Player: BlobtheGreat Result: Destroyed by H-66 Slayer with Heavy Assault Rifle Performance ------------- Evolutions (5) 2500 Regions Visited (17) 3400 Robots Destroyed (255) 1275 Value Destroyed (14133) 14133 Prototype IDs (26) 520 Alien Tech Used (0) 0 Bonus (10069) 10069 TOTAL SCORE: 31897 Bonus ------- High Alert Combat Kills 2452 Follower Combat Kills 2280 Entered Garrisons 1200 Used RIF Installer 4000 Aligned with FarCom 300 Friendly Fire -163 Cogmind --------- Core Integrity 0/1000 Matter 232/300 Energy 100/100 System Corruption 26% Temperature Cool (0) Movement Core (2350) Ox46 Location -5/Factory Parts ------- > --- POWER (1) -------- (None) > --- PROPULSION (5) --- (None) > --- UTILITY (8) ------ Cargo Storage Unit Relay Coupler [NC] (53) > --- WEAPON (3) ------- (None) > --- INVENTORY (30) --- Fission Core Fusion Compressor Improved Heavy Treads Improved Heavy Treads Improved Medium Armor Plating Relay Coupler [Swarmer] (47) Relay Coupler [Swarmer] (49) Relay Coupler [Swarmer] (49) Relay Coupler [Swarmer] (53) Relay Coupler [Grunt] (51) Relay Coupler [Sentry] (31) Relay Coupler [Sentry] (35) Relay Coupler [Sentry] (41) Relay Coupler [Demolisher] (25) Relay Coupler [Hunter] (29) Relay Coupler [Heavy] (18) Relay Coupler [Heavy] (19) Relay Coupler [Proto] (15) Relay Coupler [Proto] (15) Relay Coupler [Proto] (15) Relay Coupler [Proto] (15) Powered Hammer Peak State ------------ > --- POWER ------------ Particle Reactor > --- PROPULSION ------- Improved Medium Treads Improved Heavy Treads Improved Heavy Treads > --- UTILITY ---------- Huge Storage Unit Improved Medium Armor Plating Relay Coupler [NC] Relay Coupler [Grunt] Relay Coupler [Specialist] Relay Coupler [Hunter] Relay Coupler [Behemoth] Improved Field Recycling Unit > --- WEAPON ----------- KE Penetrator Advanced Assault Cannon Powered Hammer > --- INVENTORY -------- Fission Core Fusion Compressor Advanced Treads Improved Medium Treads High-capacity Matter Pod Improved Medium Armor Plating Relay Coupler [Swarmer] Relay Coupler [Swarmer] Relay Coupler [Swarmer] Relay Coupler [Swarmer] Relay Coupler [Grunt] Relay Coupler [Sentry] Relay Coupler [Sentry] Relay Coupler [Sentry] Relay Coupler [Hunter] Relay Coupler [Hunter] Relay Coupler [Heavy] Relay Coupler [Proto] Relay Coupler [Proto] Relay Coupler [Proto] Relay Coupler [Proto] Advanced Assault Cannon Proton Missile Launcher Remote Datajack Remote Datajack [Rating: 95] Favorites ----------- Power Particle Reactor Engine Ion Engine Power Core Light Nuclear Core Reactor Particle Reactor Propulsion Light Treads Treads Light Treads Leg Aluminum Leg Wheel Armored Wheel Flight Unit Improved Flight Unit Utility Huge Storage Unit Device Improved Field Recycling Unit Storage Huge Storage Unit Hackware Relay Coupler [Grunt] Protection Improved Medium Armor Plating Weapon Advanced Assault Cannon Ballistic Gun Shotgun Ballistic Cannon Advanced Assault Cannon Launcher Missile Launcher Special Weapon Remote Datajack Impact Weapon Powered Hammer Special Melee Weapon Improved Datajack Build | -11 -10 -10 -10 -9 -8 -8 -8 -8 -7 -7 -7 -7 -6 -6 -5 -5 -5 ------- Run | Yrd Mat Min Exi Min Mat Gar Mat Gar Fac Gar Fac Gar Fac Gar Fac Gar Fac Slots Evolved 10 | . . . . . 4 . . . 2 . . . 2 . 2 . . Power . | . . . . . . . . . . . . . . . . . . Propulsion 3 | . . . . . 1 . . . 1 . . . . . 1 . . Utility 6 | . . . . . 3 . . . . . . . 2 . 1 . . Weapon 1 | . . . . . . . . . 1 . . . . . . . . Parts Attached 172 | 7 7 3 . 3 27 14 22 9 11 7 17 11 10 4 2 12 6 Power 20 | 1 1 . . . 4 3 2 . 2 2 1 2 . . . 1 1 Engine 9 | 1 1 . . . 3 . 2 . 2 . . . . . . . . Core 9 | . . . . . 1 3 . . . 1 1 1 . . . 1 1 Reactor 2 | . . . . . . . . . . 1 . 1 . . . . . Propulsion 51 | 2 1 1 . 2 11 4 8 . 5 1 5 . 4 . 1 5 1 Treads 42 | 2 . 1 . 1 9 3 7 . 5 1 2 . 4 . 1 5 1 Leg 2 | . . . . . . 1 1 . . . . . . . . . . Wheel 5 | . 1 . . 1 . . . . . . 3 . . . . . . Hover . | . . . . . . . . . . . . . . . . . . Flight 2 | . . . . . 2 . . . . . . . . . . . . Utility 62 | 2 4 1 . . 7 2 7 7 2 3 6 7 4 3 1 4 2 Device 8 | 1 . . . . 2 . 1 . 1 . 1 1 1 . . . . Storage 7 | 1 3 . . . . . . . . . 1 . . . . 1 1 Processor . | . . . . . . . . . . . . . . . . . . Hackware 23 | . . . . . 1 . 1 6 . 1 1 5 2 3 . 3 . Protection 24 | . 1 1 . . 4 2 5 1 1 2 3 1 1 . 1 . 1 Artifact . | . . . . . . . . . . . . . . . . . . Weapon 39 | 2 1 1 . 1 5 5 5 2 2 1 5 2 2 1 . 2 2 Energy Gun . | . . . . . . . . . . . . . . . . . . Energy Cannon . | . . . . . . . . . . . . . . . . . . Ballistic Gun 19 | 2 . 1 . 1 3 3 4 1 . 1 2 . 1 . . . . Ballistic Cannon 11 | . . . . . 1 . 1 . 2 . 2 2 . 1 . 2 . Launcher 3 | . 1 . . . 1 . . . . . . . . . . . 1 Special Weapon 4 | . . . . . . . . 1 . . 1 . 1 . . . 1 Impact Weapon 1 | . . . . . . 1 . . . . . . . . . . . Slashing Weapon . | . . . . . . . . . . . . . . . . . . Piercing Weapon . | . . . . . . . . . . . . . . . . . . Special Melee Weapon 1 | . . . . . . 1 . . . . . . . . . . . Unidentified Prototypes 3 | . . . . . 2 . . . . . 1 . . . . . . Corrupted Parts 1 | . . . . . . . . . . . . . . . . 1 . System Corruption 5 | . . . . . . . . . . . . . . . . 5 . Parts Lost 76 | . 1 2 . 2 11 7 9 1 1 6 8 3 1 . . 8 16 Power 9 | . . . . . 3 2 . . . 1 1 . . . . 1 1 Propulsion 20 | . . 1 . 1 1 3 1 1 . 1 3 2 . . . 3 3 Utility 26 | . 1 . . . 5 2 6 . 1 2 2 . . . . 1 6 Weapon 21 | . . 1 . 1 2 . 2 . . 2 2 1 1 . . 3 6 Highest Loss Streak 16 | . 1 2 . 2 2 3 2 1 1 3 7 2 1 . . 2 16 To Critical Strikes 2 | . . . . 1 . . . . . . . . 1 . . . . Average Backups 23 | 4 10 23 24 23 23 23 23 23 23 24 23 24 24 24 22 25 26 Power 1 | . 1 1 3 3 3 2 2 2 1 1 . 1 . 1 1 1 1 Propulsion 4 | 3 1 3 3 3 5 6 8 7 6 5 1 1 3 4 3 2 3 Utility 8 | . 4 7 7 7 2 2 3 5 6 9 14 15 12 12 11 15 17 Weapon 6 | . 3 10 10 9 10 11 8 7 8 6 5 3 5 5 5 2 1 Tool/Special . | . . . . . . . . . . . . . . . . . . Unused Backups 74 | . 4 . 2 1 7 2 3 1 4 13 1 8 1 3 . 5 19 Power 7 | . . . . 1 2 1 1 . . . . 1 . . . . 1 Propulsion 12 | . 4 . . . . . 1 . . 5 . . . . . . 2 Utility 43 | . . . . . 2 . 1 1 1 8 1 5 1 2 . 5 16 Weapon 11 | . . . 2 . 3 1 . . 3 . . 2 . . . . . Tool/Special 1 | . . . . . . . . . . . . . . 1 . . . Average Slot Usage (%) 95 | . 99 99 100 99 99 98 96 98 99 90 91 97 98 99 99 88 78 Engine 4 | . 14 14 14 14 7 . 7 9 7 1 . . . . . . . Core 1 | . . . . . 1 8 1 . . 1 6 2 . . . . 4 Reactor 1 | . . . . . . . . . . 4 . 4 6 6 5 4 . Treads 23 | . 22 13 14 14 26 25 25 26 30 29 23 13 23 26 29 21 15 Wheel 2 | . 5 14 14 13 . . . . . . 4 14 2 . . . . Device 5 | . 7 2 . . 16 9 2 . . 7 . 2 10 10 11 6 4 Storage 8 | . 18 14 14 14 9 9 9 9 7 7 7 7 6 6 5 5 5 Hackware 13 | . . . . . 1 9 14 20 21 9 14 15 18 25 23 24 22 Protection 10 | . 2 11 14 14 17 17 16 14 7 8 13 12 8 2 4 5 4 Ballistic Gun 10 | . 27 28 28 28 17 13 16 6 5 6 4 . 1 . . 3 4 Ballistic Cannon 6 | . . . . . . 3 1 . 11 9 3 9 13 17 13 11 9 Special Weapon 1 | . . . . . . . . 5 3 . 5 6 1 2 3 . . Peak Build Rating 95 | 8 10 11 14 15 37 37 36 38 49 64 57 49 74 75 80 95 93 Average Rating 45 | 6 8 10 12 14 27 35 31 35 45 56 46 45 68 73 79 85 87 On Entrance 39 | . 8 10 11 14 14 37 33 34 38 48 57 41 49 74 73 80 90 Naked Turns . | . . . . . . . . . . . . . . . . . . Heaviest Build 194 | 15 90 91 91 92 105 99 106 116 122 123 113 132 139 129 136 194 190 Greatest Support 180 | 40 40 10 10 40 84 84 68 68 84 86 86 42 118 118 140 180 180 Greatest Overweight (x) 10 | . 8 9 9 9 1 1 9 2 1 2 9 10 6 1 . 1 4 Average Overweight (x) 2 | . 2 8 9 5 1 1 1 1 1 1 2 4 1 1 . . 1 Largest Inventory Capacity 30 | 8 25 25 25 25 25 25 25 25 25 25 25 25 25 25 25 30 30 Average Capacity 24 | 7 15 25 25 25 25 25 25 25 25 25 25 25 25 25 25 27 30 Most Carried 30 | 8 23 24 25 25 25 25 25 25 25 25 25 25 25 25 23 30 30 Average Carried 23 | 5 10 23 24 24 24 24 24 24 24 24 23 24 24 24 22 26 28 Final Capacity 30 | 8 25 25 25 25 25 25 25 25 25 25 25 25 25 25 25 30 30 Final Carried 28 | 8 23 23 25 25 25 24 25 25 25 25 25 25 25 24 23 28 24 Class Distribution -------------------- 20% | Botlord-Skirmisher 18% | Mutant 18% | Scavenger-Mutant 16% | Botlord-Tank 7% | Bothacker-Skirmisher 6% | Bothacker-Mutant 5% | Botlord-Mutant Dominant Class ---------------- Mutant | -10/Materials Mutant | -10/Mines Mutant | -10/Exiles Mutant | -9/Mines Scavenger-Mutant | -8/Materials Scavenger-Mutant | -8/Garrison Scavenger-Mutant | -8/Materials Bothacker-Mutant | -8/Garrison Bothacker-Skirmisher | -7/Factory Botlord-Skirmisher | -7/Garrison Botlord-Tank | -7/Factory Botlord-Tank | -7/Garrison Botlord-Skirmisher | -6/Factory Botlord-Skirmisher | -6/Garrison Botlord-Skirmisher | -5/Factory Botlord-Skirmisher | -5/Garrison Botlord-Tank | -5/Factory Resources | -11 -10 -10 -10 -9 -8 -8 -8 -8 -7 -7 -7 -7 -6 -6 -5 -5 -5 ----------- Run | Yrd Mat Min Exi Min Mat Gar Mat Gar Fac Gar Fac Gar Fac Gar Fac Gar Fac Matter Collected 9134 | 348 403 131 . 190 1185 546 1125 368 618 811 433 570 165 781 83 1317 60 Remotely . | . . . . . . . . . . . . . . . . . . Salvage Created 9746 | 104 730 78 . 332 2141 477 1514 162 325 821 457 441 51 499 . 1315 299 Parts 501 | 10 36 6 . 24 91 31 75 16 19 41 21 29 2 37 . 50 13 Haulers Intercepted 10 | . 2 . . . 4 . 2 . 1 . 1 . . . . . . Recyclers Shooed 9 | 2 2 . . . 3 . 2 . . . . . . . . . . Parts Field Recycled 57 | . . . . . . . . . . . . 18 . 20 17 2 . Retrieved Matter 548 | . . . . . . . . . . . . 161 . 158 196 33 . Parts Self-Destructed . | . . . . . . . . . . . . . . . . . . Prevented . | . . . . . . . . . . . . . . . . . . Kills | -11 -10 -10 -10 -9 -8 -8 -8 -8 -7 -7 -7 -7 -6 -6 -5 -5 -5 ------- Run | Yrd Mat Min Exi Min Mat Gar Mat Gar Fac Gar Fac Gar Fac Gar Fac Gar Fac Combat Hostiles Destroyed 213 | . 13 2 . 8 33 19 26 7 9 23 8 16 1 20 . 23 5 Melee 4 | . . . . . . . . 1 . . 3 . . . . . . Guns 107 | . 10 2 . 8 29 8 21 5 2 16 2 . . . . 3 1 Cannons 83 | . . . . . 1 6 5 1 7 7 2 11 1 20 . 20 2 AOE 18 | . 3 . . . 3 5 . . . . . 5 . . . . 2 Classes Destroyed 19 | 2 5 . . 1 2 . 2 1 1 2 1 . . . . 1 1 Worker 4 | . 1 . . . 2 . . . . . 1 . . . . . . Builder 1 | . . . . . . . 1 . . . . . . . . . . Tunneler 3 | 2 1 . . . . . . . . . . . . . . . . Hauler 10 | . 2 . . . 4 . 2 . 1 . 1 . . . . . . Recycler 12 | 1 1 . . 2 4 . 4 . . . . . . . . . . Mechanic 1 | . . . . . . . . . . . . . . . . . 1 Operator 7 | . 2 . . . 2 . 1 . . . 2 . . . . . . Watcher 3 | . . . . . . . . . 1 . 2 . . . . . . Swarmer 47 | . 3 . . 6 3 8 2 4 2 5 . 5 . 5 . 4 . Cutter 5 | . . . . . . . . . . 3 . . . 2 . . . Grunt 105 | . 10 2 . 1 22 9 12 1 3 8 3 9 1 9 . 13 2 Brawler 3 | . . . . 1 1 . . . . 1 . . . . . . . Duelist 4 | . . . . . 1 1 . . . . 1 . . . . . 1 Protector 1 | . . . . . . . . . . . 1 . . . . . . Sentry 22 | . . . . . 6 1 10 . 2 1 . . . . . 2 . Specialist 2 | . . . . . . . . . . . . . . . . 2 . Hunter 4 | . . . . . . . 2 . . 1 1 . . . . . . Programmer 19 | . . . . . . . . 2 2 3 2 2 . 4 . 2 2 Heavy 1 | . . . . . . . . . . 1 . . . . . . . Infiltrator 1 | . . . . . . . . . . . . . . . . 1 . Best Kill Streak 6 | 1 5 1 . 3 4 5 4 4 2 3 4 4 1 4 . 3 6 Combat Bots Only 5 | . 4 1 . 3 3 5 4 4 2 3 3 4 1 4 . 3 5 Max Kills in Single Turn 3 | 1 2 1 . 1 3 3 1 1 2 1 2 2 1 2 . 1 2 Gunslinging . | . . . . . . . . . . . . . . . . . . Exploded 3 | . 2 . . . 3 3 . . . . . 2 . . . . 1 Melee 1 | . . . . . . . . 1 . . 1 . . . . . . Uniques/NPCs Destroyed . | . . . . . . . . . . . . . . . . . . Combat | -11 -10 -10 -10 -9 -8 -8 -8 -8 -7 -7 -7 -7 -6 -6 -5 -5 -5 -------- Run | Yrd Mat Min Exi Min Mat Gar Mat Gar Fac Gar Fac Gar Fac Gar Fac Gar Fac Hostile Shots Fired 1549 | . 63 20 . 16 171 92 211 49 150 97 93 98 18 102 . 128 241 Missed 476 | . 17 4 . 5 52 21 63 15 66 19 19 29 7 33 . 48 78 Hits 1073 | . 46 16 . 11 119 71 148 34 84 78 74 69 11 69 . 80 163 Melee 24 | . . . . 1 2 . . . . 8 4 . . . . . 9 Projectile 1049 | . 46 16 . 10 117 71 148 34 84 70 70 69 11 69 . 80 154 AOE 10 | . . 8 . . . . . . . . . . 2 . . . . Critical Strikes 62 | . 1 1 . 1 7 3 7 1 . 4 8 2 1 7 . 4 15 Actively Blocked 2 | . 1 . . . . . 1 . . . . . . . . . . Part Disruptions 3 | . . . . . . . . . . . . . 1 . . . 2 Damage Taken 16908 | . 556 414 . 124 1849 942 2179 414 820 1145 1321 769 338 1028 36 1677 3296 Core 2333 | . 94 78 . 5 139 99 250 41 98 55 172 98 76 113 . 224 791 Absorbed by Shields 426 | . . . . . . . . . . 122 . 228 . 31 . 45 . Reduced by Siege Mode 108 | . . . . . . . . . . . . . . . . . 108 Redirected to Shielding 130 | . 50 15 . 1 29 21 14 . . . . . . . . . . Regen/Repaired (Parts) 253 | . 106 . . . . . 147 . . . . . . . . . . Core Remaining (%) 49 | 100 . . . 29 . . . 3 . . . 39 . 77 . . . Volleys Fired 755 | 13 50 16 . 15 141 52 102 36 27 35 13 58 7 59 2 103 26 Largest 3 | 2 2 2 . 2 2 2 2 2 3 3 3 2 3 3 3 3 3 Hottest 120 | 40 40 43 . 46 60 62 77 60 103 102 110 80 113 120 120 120 113 Shots Fired 1567 | 26 98 32 . 30 273 93 204 48 73 135 49 79 10 140 6 227 44 Gun 905 | 26 96 32 . 30 268 68 169 22 22 77 26 . 1 . . 57 11 Cannon 566 | . . . . . 4 22 35 6 49 58 22 54 4 128 6 159 19 Launcher 20 | . 2 . . . 1 3 . . . . . 8 . . . . 6 Special 76 | . . . . . . . . 20 2 . 1 17 5 12 . 11 8 Kinetic 1471 | 26 96 32 . 30 272 90 204 28 71 135 48 54 5 128 6 216 30 Thermal . | . . . . . . . . . . . . . . . . . . Explosive 14 | . 2 . . . 1 3 . . . . . 8 . . . . . Electromagnetic 6 | . . . . . . . . . . . . . . . . . 6 Robot Hit Streak 34 | 3 19 10 . 5 20 5 18 11 24 12 8 7 3 15 17 34 7 Robot Miss Streak 6 | 2 3 4 . 2 5 3 6 3 4 4 2 6 2 3 3 5 3 Penetration Max 1 | . . . . . . . . . . 1 1 1 . . . 1 . Secondary Targets 6 | . 1 . . 1 . 2 2 . . . . . . . . . . Max Gunslinging Chain 1 | . 1 . . 1 . 1 1 . . . . . . . . . . Autonomous 72 | . . . . . . . . . . 57 15 . . . . . . Shots Hit Robots 1018 | 13 64 23 . 21 189 63 140 30 50 83 45 39 6 73 3 149 27 Core Hits 462 | 4 32 4 . 15 93 31 72 8 20 36 19 24 2 26 1 61 14 Critical Kills 3 | . . . . . 1 . 1 1 . . . . . . . . . Critical Parts Destroyed 9 | . . 1 . . 1 . 1 . . 1 3 . . . . 2 . Critical Strikes 43 | . . 1 . . 2 . 2 1 3 4 7 7 1 4 . 10 1 Destroy 9 | . . 1 . . 2 . 2 1 . 1 . . . . . 2 . Blast 31 | . . . . . . . . . 3 3 4 7 1 4 . 8 1 Smash 3 | . . . . . . . . . . . 3 . . . . . . Melee Attacks 47 | . . . . . . 10 2 15 1 . 13 . . . . 5 1 Impact 40 | . . . . . . 3 2 15 1 . 13 . . . . 5 1 Slashing . | . . . . . . . . . . . . . . . . . . Piercing . | . . . . . . . . . . . . . . . . . . Sneak Attacks 8 | . . . . . . 7 . . . . 1 . . . . . . Combat Hostiles . | . . . . . . . . . . . . . . . . . . Follow-up Attacks . | . . . . . . . . . . . . . . . . . . Damage Inflicted 23461 | 169 936 313 . 328 3101 1348 2832 369 1318 2331 1659 1400 96 1838 127 4314 982 Guns 11147 | 169 836 313 . 301 2888 624 2213 161 293 1525 569 . . . . 1144 111 Cannons 9356 | . . . . . 46 391 613 148 979 806 560 642 96 1838 127 2713 397 Explosions 1819 | . 100 . . . 154 333 . . . . . 758 . . . . 474 Melee 1093 | . . . . . . . . 60 46 . 530 . . . . 457 . Ramming 46 | . . . . 27 13 . 6 . . . . . . . . . . Kinetic 20503 | 169 836 313 . 301 2934 1015 2826 309 1272 2331 1129 642 96 1838 127 3857 508 Thermal 57 | . . . . . . . . . . . . . . . . . 57 Explosive 1345 | . 100 . . . 154 333 . . . . . 758 . . . . . Electromagnetic 417 | . . . . . . . . . . . . . . . . . 417 Impact 1093 | . . . . . . . . 60 46 . 530 . . . . 457 . Slashing . | . . . . . . . . . . . . . . . . . . Piercing . | . . . . . . . . . . . . . . . . . . Highest Corruption 26 | . . . . 6 . . . 1 2 2 3 3 . 6 . 6 26 Average Corruption 3 | . . . . 6 . . . 1 1 2 2 3 . 5 . 4 7 Corruption Purged . | . . . . . . . . . . . . . . . . . . Corruption Blocked . | . . . . . . . . . . . . . . . . . . Effects 285 | . . . . 44 . . . 11 8 39 32 23 . 48 . 57 23 Message Errors 60 | . . . . 15 . . . 3 2 6 6 7 . 10 . 8 3 Matter Fused 74 | . . . . 9 . . . 3 2 10 9 5 . 18 . 12 6 Heat Flow Errors 45 | . . . . 12 . . . 2 . 5 4 4 . 5 . 9 4 Energy Discharges 27 | . . . . 2 . . . 1 2 7 4 1 . 3 . 5 2 Parts Rejected 3 | . . . . . . . . . 1 . . . . . . 1 1 Parts Fused 8 | . . . . . . . . . . 2 . . . 4 . 1 1 Data Loss (minor) 30 | . . . . 4 . . . . . 3 7 1 . 2 . 10 3 Data Loss (major) 18 | . . . . 2 . . . . 1 4 1 3 . 2 . 4 1 Misfires 11 | . . . . . . . . 1 . 2 . 1 . 1 . 5 1 Alerts 6 | . . . . . . . . 1 . . 1 1 . 1 . 1 1 Weapon Failures 3 | . . . . . . . . . . . . . . 2 . 1 . Overload Shots . | . . . . . . . . . . . . . . . . . . Overflow Damage 506 | . . . . . 10 30 35 . 11 7 215 70 . 20 . 49 59 Projectiles 148 | . . . . . 8 7 35 . 11 7 10 5 . 20 . 4 41 Explosions 108 | . . . . . 2 23 . . . . . 65 . . . . 18 Melee 250 | . . . . . . . . . . . 205 . . . . 45 . Knockbacks 79 | . . . . . 1 3 5 . 9 9 18 4 . 15 2 9 4 Impact 4 | . . . . . . . . . . . 3 . . . . 1 . Kinetic 68 | . . . . . 1 3 5 . 9 9 9 4 . 14 2 8 4 Secondary 7 | . . . . . . . . . . . 6 . . 1 . . . Self-Inflicted Damage 81 | . 21 . . 13 . . . . . . . 47 . . . . . Shots 2 | . 1 . . . . . . . . . . 1 . . . . . Rammed 4 | . . . . 3 1 . . . . . . . . . . . . Targets Rammed 5 | . . . . 3 1 . 1 . . . . . . . . . . Kicked . | . . . . . . . . . . . . . . . . . . Crushed 1 | . . . . . . . 1 . . . . . . . . . . Highest Temperature 328 | . 15 20 . 260 29 6 115 187 328 181 323 232 . 256 . 284 271 Average Temperature 75 | . 4 8 . 104 5 5 38 47 100 73 120 53 . 56 . 83 117 Received Heat Transfer 5423 | . 291 84 . 18 1035 531 1008 63 225 110 504 201 51 319 12 471 500 Effects 4 | . . . . . . . . . 3 . 1 . . . . . . Interference 2 | . . . . . . . . . 2 . . . . . . . . Matter Decay 1 | . . . . . . . . . 1 . . . . . . . . Short Circuit 1 | . . . . . . . . . . . 1 . . . . . . Siege Activations 1 | . . . . . . . . . . . . . . . . . 1 Total Turns 49 | . . . . . . . . . . . . . . . . . 49 Longest Duration 49 | . . . . . . . . . . . . . . . . . 49 Martial Activations . | . . . . . . . . . . . . . . . . . . Shielding Activations . | . . . . . . . . . . . . . . . . . . Robots Disrupted . | . . . . . . . . . . . . . . . . . . Combat Hostiles . | . . . . . . . . . . . . . . . . . . Robots Corrupted 3 | . . . . . . . . . . . 2 . . . . 1 . Combat Hostiles 1 | . . . . . . . . . . . 1 . . . . . . Parts Fried 9 | . . . . . . . . . . . 4 . . . . 2 3 Impact Corruptions 10 | . . . . . . . . . . . 8 . . . . 2 . Robots Melted . | . . . . . . . . . . . . . . . . . . Combat Hostiles . | . . . . . . . . . . . . . . . . . . Parts Melted 1 | . . . . . . . 1 . . . . . . . . . . Heat Transferred 50 | . . . . . . . . . . . . . . . . . 50 Parts Sabotaged . | . . . . . . . . . . . . . . . . . . Parts Stolen . | . . . . . . . . . . . . . . . . . . Parts Stripped . | . . . . . . . . . . . . . . . . . . Power Chain Reactions 1 | . . . . . . . . . . . . . . . . . 1 Alert | -11 -10 -10 -10 -9 -8 -8 -8 -8 -7 -7 -7 -7 -6 -6 -5 -5 -5 ------- Run | Yrd Mat Min Exi Min Mat Gar Mat Gar Fac Gar Fac Gar Fac Gar Fac Gar Fac Maximum Alert Level 5 | . . . . . 1 3 2 3 1 5 3 4 3 5 3 5 5 Low Security (%) 28 | 100 100 100 . 100 72 . 19 6 64 2 . . . . . . . Level 1 15 | . . . . . 27 13 70 22 35 22 . 8 . . . . . Level 2 17 | . . . . . . 45 10 63 . 18 77 16 6 14 . 4 . Level 3 20 | . . . . . . 40 . 7 . 32 22 56 93 35 100 24 . Level 4 11 | . . . . . . . . . . 16 . 19 . 43 . 29 83 Level 5 6 | . . . . . . . . . . 6 . . . 6 . 40 16 High Security . | . . . . . . . . . . . . . . . . . . Max Security . | . . . . . . . . . . . . . . . . . . Peak Influence 3142 | 5 128 30 . 98 330 964 546 761 399 1748 917 1368 920 1791 1023 3142 1649 Initial 1649 | . . . . . . 206 469 177 399 168 917 313 718 543 940 681 1649 Average 631 | . 47 1 . 19 122 621 257 492 126 795 604 889 815 1053 942 1628 1487 Influence Increases 12714 | 15 446 80 . 200 937 888 864 654 431 1680 223 1225 551 1288 263 2841 128 Destroy 0b10 Robot/C 5500 | . 260 40 . 160 660 420 520 180 220 540 140 580 260 500 100 820 100 Destroy 0b10 Robot/NC 240 | 15 35 . . 10 60 . 40 . 10 . 35 . . . 10 20 5 Destroy Leader 828 | . 54 10 . 30 148 20 194 10 94 30 46 40 50 30 22 40 10 Allied During Kill 564 | . . . . . . 5 . 12 12 27 . 132 94 38 121 123 . Successful Hack 203 | . 19 . . . 20 12 48 12 14 14 . 21 38 . . . 5 Disable Machine 210 | . 15 . . . 15 . 15 . 45 45 . 15 60 . . . . Anti-Garrison Action 4400 | . . . . . . 400 . 350 . 950 . 300 . 700 . 1700 . Destroy Structure 394 | . 3 . . . 19 31 17 60 6 44 2 32 34 20 10 108 8 Partial Spotted 15 | . . . . . . . . . . . . . 15 . . . . Lose Combat Pursuer 360 | . 60 30 . . 15 . 30 30 30 30 . 105 . . . 30 . Influence Decreases 11463 | 15 446 80 . 200 620 241 1555 166 952 172 1523 305 1142 274 1081 672 2019 Entered New Map 5622 | . . . . . . 111 495 96 362 72 831 135 650 234 851 292 1493 Time Decay 3901 | 15 436 80 . 200 520 . 670 . 530 . 612 . 362 . 150 . 326 Lost Part 700 | . 10 . . . 100 70 90 10 . 60 80 30 10 . . 80 160 Lost Ally 940 | . . . . . . 60 . 60 60 40 . 140 120 40 80 300 40 Purge Threat 300 | . . . . . . . 300 . . . . . . . . . . Squads Dispatched 37 | . 3 . . . 4 . 8 . 9 . 5 . 4 . . . 4 Investigation 4 | . 2 . . . 1 . . . . . . . 1 . . . . Extermination 8 | . . . . . . . . . 3 . 3 . 1 . . . 1 Reinforcement 8 | . 1 . . . 1 . 2 . . . 1 . 2 . . . 1 Assault 3 | . . . . . . . . . . . 1 . . . . . 2 Garrison 14 | . . . . . 2 . 6 . 6 . . . . . . . . Intercept . | . . . . . . . . . . . . . . . . . . Searches Triggered . | . . . . . . . . . . . . . . . . . . Construction Impeded 1 | . . . . . . . . . . . . . 1 . . . . Haulers Reinforced . | . . . . . . . . . . . . . . . . . . Active Scanning Responses . | . . . . . . . . . . . . . . . . . . Cargo Convoy Interrupts . | . . . . . . . . . . . . . . . . . . Stealth | -11 -10 -10 -10 -9 -8 -8 -8 -8 -7 -7 -7 -7 -6 -6 -5 -5 -5 --------- Run | Yrd Mat Min Exi Min Mat Gar Mat Gar Fac Gar Fac Gar Fac Gar Fac Gar Fac Distress Signals 10 | . . . . . 7 . 2 . . . 1 . . . . . . Communications Jammed 173 | . . . . . . . 61 . . . 60 . . . 2 . 50 Distress Signals 171 | . . . . . . . 61 . . . 60 . . . . . 50 Times Spotted 378 | . 23 5 . 8 53 20 49 16 16 25 12 38 16 29 5 42 21 Peak Tracking Total 10 | . 4 2 . 3 6 4 5 4 3 7 6 7 4 3 4 3 10 Tactical Retreats 17 | . 1 1 . . 1 . 2 1 2 2 . 5 . . . 2 . Traps | -11 -10 -10 -10 -9 -8 -8 -8 -8 -7 -7 -7 -7 -6 -6 -5 -5 -5 ------- Run | Yrd Mat Min Exi Min Mat Gar Mat Gar Fac Gar Fac Gar Fac Gar Fac Gar Fac Traps Triggered 40 | . . . . . . 9 . 4 . 9 1 1 1 8 . 7 . Indirectly . | . . . . . . . . . . . . . . . . . . Trap Hack Attempts . | . . . . . . . . . . . . . . . . . . Triggered . | . . . . . . . . . . . . . . . . . . Disarmed . | . . . . . . . . . . . . . . . . . . Reprogrammed . | . . . . . . . . . . . . . . . . . . Reused . | . . . . . . . . . . . . . . . . . . Traps Extracted . | . . . . . . . . . . . . . . . . . . Installed . | . . . . . . . . . . . . . . . . . . Triggered . | . . . . . . . . . . . . . . . . . . Machines | -11 -10 -10 -10 -9 -8 -8 -8 -8 -7 -7 -7 -7 -6 -6 -5 -5 -5 ---------- Run | Yrd Mat Min Exi Min Mat Gar Mat Gar Fac Gar Fac Gar Fac Gar Fac Gar Fac Machines Disabled 38 | . 1 . . . 1 3 1 3 3 8 . 5 4 4 . 5 . Max in Single Turn 1 | . 1 . . . 1 1 1 1 1 1 . 1 . 1 . 1 . Garrison Relay 24 | . . . . . . 3 . 3 . 5 . 4 . 4 . 5 . Machines Repaired . | . . . . . . . . . . . . . . . . . . Machines Dismantled . | . . . . . . . . . . . . . . . . . . Machines Sabotaged . | . . . . . . . . . . . . . . . . . . Overloaded Fab Kills . | . . . . . . . . . . . . . . . . . . Hacking | -11 -10 -10 -10 -9 -8 -8 -8 -8 -7 -7 -7 -7 -6 -6 -5 -5 -5 --------- Run | Yrd Mat Min Exi Min Mat Gar Mat Gar Fac Gar Fac Gar Fac Gar Fac Gar Fac Machines Accessed 52 | . 8 . 1 1 6 3 6 1 5 1 4 3 4 1 1 3 4 Terminals 36 | . 7 . . 1 4 3 4 1 3 1 1 3 . 1 . 3 4 Fabricators 2 | . . . . . . . . . . . 1 . 1 . . . . Repair Stations 2 | . 1 . . . . . 1 . . . . . . . . . . Recycling Units 2 | . . . . . . . . . 1 . . . 1 . . . . Scanalyzers 3 | . . . . . 1 . . . . . 1 . 1 . . . . Garrison Access 6 | . . . . . 1 . 1 . 1 . 1 . 1 . 1 . . Total Hacks 107 | . 26 . 1 1 12 5 16 1 10 4 7 4 7 1 1 6 5 Successful 50 | . 9 . 1 1 7 1 11 1 4 1 4 2 6 . 1 . 1 Failed 56 | . 16 . . . 5 4 5 . 6 3 3 2 1 1 . 6 4 Catastrophic 16 | . 3 . . . 1 2 . . 2 . . 1 1 1 . 3 2 Database Lockouts 1 | . 1 . . . . . . . . . . . . . . . . Manual 39 | . 16 . 1 . 4 . 9 . 4 . 1 . . . . . 4 Terminals 81 | . 23 . . 1 9 5 11 1 8 4 3 4 . 1 . 6 5 Fabricators 4 | . . . . . . . . . . . 1 . 3 . . . . Repair Stations 7 | . 3 . . . . . 4 . . . . . . . . . . Recycling Units 2 | . . . . . . . . . 1 . . . 1 . . . . Scanalyzers 6 | . . . . . 2 . . . . . 2 . 2 . . . . Garrison Access 6 | . . . . . 1 . 1 . 1 . 1 . 1 . 1 . . Terminal Hacks 23 | . 6 . 1 1 3 1 5 1 2 1 . 2 . . . . . Record 1 | . . . . 1 . . . . . . . . . . . . . Robot Analysis 5 | . 3 . . . . . 2 . . . . . . . . . . Open Door 1 | . . . . . . . . . . . . 1 . . . . . Emergency Access Points 2 | . . . . . . . . 1 . . . 1 . . . . . Unreport Threat 2 | . . . . . . . 2 . . . . . . . . . . Locate Traps 1 | . . . . . . . . . 1 . . . . . . . . Transport Status 2 | . . . . . 1 . . . 1 . . . . . . . . Hauler Manifests 5 | . 3 . . . 2 . . . . . . . . . . . . Zone Layout 1 | . . . . . . . 1 . . . . . . . . . . Garrison Registry 1 | . . . . . . 1 . . . . . . . . . . . Patrol Navigation 1 | . . . . . . . . . . 1 . . . . . . . Proto ID Catalog 1 | . . . 1 . . . . . . . . . . . . . . Fabricator Hacks 3 | . . . . . . . . . . . . . 3 . . . . Network Status 1 | . . . . . . . . . . . . . 1 . . . . Load Schematic 1 | . . . . . . . . . . . . . 1 . . . . Build 1 | . . . . . . . . . . . . . 1 . . . . Repair Station Hacks 5 | . 2 . . . . . 3 . . . . . . . . . . Scan Component 3 | . 1 . . . . . 2 . . . . . . . . . . Repair 2 | . 1 . . . . . 1 . . . . . . . . . . Recycling Unit Hacks . | . . . . . . . . . . . . . . . . . . Scanalyzer 6 | . . . . . 2 . . . . . 2 . 2 . . . . Insert Component 3 | . . . . . 1 . . . . . 1 . 1 . . . . Analyze 3 | . . . . . 1 . . . . . 1 . 1 . . . . Garrison Access Hacks 6 | . . . . . 1 . 1 . 1 . 1 . 1 . 1 . . Unlock Access 6 | . . . . . 1 . 1 . 1 . 1 . 1 . 1 . . Unauthorized Hacks 7 | . 1 . . . 1 . 2 . 1 . 1 . . . . . 1 Terminals 7 | . 1 . . . 1 . 2 . 1 . 1 . . . . . 1 Botnet 7 | . 1 . . . 1 . 2 . 1 . 1 . . . . . 1 Fabricators . | . . . . . . . . . . . . . . . . . . Repair Stations . | . . . . . . . . . . . . . . . . . . Recycling Units . | . . . . . . . . . . . . . . . . . . Scanalyzers . | . . . . . . . . . . . . . . . . . . Garrison Access . | . . . . . . . . . . . . . . . . . . Data Cores Recovered 2 | . 1 . . . . . . . . . 1 . . . . . . Used 2 | . 1 . . . . . . . . . 1 . . . . . . Hacking Detections 37 | . 6 . . . 3 3 6 1 4 1 2 1 2 1 . 3 4 Full Trace Events 5 | . 1 . . . 1 1 . . . . . . 1 . . 1 . Feedback Events . | . . . . . . . . . . . . . . . . . . Feedback Blocked . | . . . . . . . . . . . . . . . . . . Robot Schematics Acquired . | . . . . . . . . . . . . . . . . . . Robots Built . | . . . . . . . . . . . . . . . . . . Authchips . | . . . . . . . . . . . . . . . . . . Time . | . . . . . . . . . . . . . . . . . . Total Robot Build Rating . | . . . . . . . . . . . . . . . . . . Part Schematics Acquired 3 | . . . . . 1 . . . . . 1 . 1 . . . . Parts Built 2 | . . . . . . . . . . . . . 2 . . . . Authchips . | . . . . . . . . . . . . . . . . . . Time 36 | . . . . . . . . . . . . . 36 . . . . Total Part Build Rating 6 | . . . . . . . . . . . . . 6 . . . . Parts Repaired 2 | . 1 . . . . . 1 . . . . . . . . . . Time 87 | . 26 . . . . . 61 . . . . . . . . . . Parts Recycled . | . . . . . . . . . . . . . . . . . . Recycled Matter . | . . . . . . . . . . . . . . . . . . Retrieved Matter . | . . . . . . . . . . . . . . . . . . Retrieved Components . | . . . . . . . . . . . . . . . . . . Parts Scanalyzed 3 | . . . . . 1 . . . . . 1 . 1 . . . . Part Schematics Acquired 3 | . . . . . 1 . . . . . 1 . 1 . . . . Parts Damaged . | . . . . . . . . . . . . . . . . . . Bothacking | -11 -10 -10 -10 -9 -8 -8 -8 -8 -7 -7 -7 -7 -6 -6 -5 -5 -5 ------------ Run | Yrd Mat Min Exi Min Mat Gar Mat Gar Fac Gar Fac Gar Fac Gar Fac Gar Fac Used RIF Installer 8 | . . . . . . 2 . 2 . 1 . 1 . 1 . 1 . Coupler Efficiency 1 | . . . . . . . . . . 1 . . . . . . . Hotswap 1 | . . . . . . . . . . . . . . 1 . . . Code Merge 1 | . . . . . . . . . . . . . . . . 1 . Signal Jammer 1 | . . . . . . 1 . . . . . . . . . . . Patrol Navigation 1 | . . . . . . . . . . . . 1 . . . . . Structural Interface 1 | . . . . . . . . 1 . . . . . . . . . Program Shield 1 | . . . . . . . . 1 . . . . . . . . . Robots Hacked 38 | . . . . . . . . 8 2 . 1 10 2 7 . 6 2 Non-combat 1 | . . . . . . . . . . . 1 . . . . . . Combat 37 | . . . . . . . . 8 2 . . 10 2 7 . 6 2 Robot Hacks Applied 42 | . . . . . . . . 9 2 . 1 11 3 7 . 7 2 parse_system 4 | . . . . . . . . . . . . 1 2 . . 1 . drop_inventory 1 | . . . . . . . . . . . 1 . . . . . . scatter_targeting 1 | . . . . . . . . 1 . . . . . . . . . mark_system 1 | . . . . . . . . 1 . . . . . . . . . formatsys_high 35 | . . . . . . . . 7 2 . . 10 1 7 . 6 2 Relay Couplers Released 95 | . . . . . . 10 . 14 . 19 . 16 . 16 . 20 . Machine Destruction 95 | . . . . . . 10 . 14 . 19 . 16 . 16 . 20 . Attached 22 | . . . . . . . 1 6 . 1 1 5 2 3 . 3 . Merged Code Value 66 | . . . . . . . . . . . . . . . . 66 . Fabnet Peak Effective % . | . . . . . . . . . . . . . . . . . . Robots Rewired 21 | . . . . . . 3 . . . 3 . 3 . 12 . . . Allies Hacked 1 | . . . . . . . . . . 1 . . . . . . . Hacks Repelled . | . . . . . . . . . . . . . . . . . . Allies | -11 -10 -10 -10 -9 -8 -8 -8 -8 -7 -7 -7 -7 -6 -6 -5 -5 -5 -------- Run | Yrd Mat Min Exi Min Mat Gar Mat Gar Fac Gar Fac Gar Fac Gar Fac Gar Fac Total Allies 62 | . . 2 . . . 3 . 7 2 3 . 15 1 19 . 8 2 Largest Group 17 | . . 2 2 . . 3 . 4 4 3 . 8 7 17 17 10 1 Highest-Rated Group 517 | . . 53 53 . . 48 . 77 77 96 . 336 300 517 517 351 29 Highest-Rated Ally 85 | . . 31 31 . . 16 . 29 32 32 . 80 81 47 46 85 29 Total Orders 10 | . . . . . . . . 5 . . . 4 1 . . . . STAY 7 | . . . . . . . . 4 . . . 2 1 . . . . FOLLOW 3 | . . . . . . . . 1 . . . 2 . . . . . Ally Attacks 364 | . . . . . . 33 . 19 31 11 . 69 60 12 35 94 . Total Damage 8622 | . . . . . . 338 . 172 433 473 . 1303 1942 290 936 2735 . Kills 71 | . . . . . . 2 . 2 2 4 . 14 14 5 9 19 . Allies Corrupted 1 | . . . . . . . . . . . . . . . . 1 . Allies Melted . | . . . . . . . . . . . . . . . . . . Intel | -11 -10 -10 -10 -9 -8 -8 -8 -8 -7 -7 -7 -7 -6 -6 -5 -5 -5 ------- Run | Yrd Mat Min Exi Min Mat Gar Mat Gar Fac Gar Fac Gar Fac Gar Fac Gar Fac Active Infowar (turns) 3521 | 93 827 240 . . 2361 . . . . . . . . . . . . Terrain 1480 | . . . . . 1480 . . . . . . . . . . . . Seismic 3521 | 93 827 240 . . 2361 . . . . . . . . . . . . Robot Analysis Total 5 | . 3 . . . . . 2 . . . . . . . . . . Derelict Logs Recovered 5 | . . 3 . 2 . . . . . . . . . . . . . Drone Launches . | . . . . . . . . . . . . . . . . . . Drone Recoveries . | . . . . . . . . . . . . . . . . . . Exploration | -11 -10 -10 -10 -9 -8 -8 -8 -8 -7 -7 -7 -7 -6 -6 -5 -5 -5 ------------- Run | Yrd Mat Min Exi Min Mat Gar Mat Gar Fac Gar Fac Gar Fac Gar Fac Gar Fac Turns Passed 30562 | 185 1590 1188 471 1499 2740 2083 2581 1942 2080 2715 2008 1446 837 2402 302 3756 737 Spaces Moved 12167 | 84 768 530 218 816 833 755 828 743 785 1067 897 739 356 872 176 1446 254 Core 5 | 5 . . . . . . . . . . . . . . . . . Treads 9103 | 79 489 . . 7 833 755 825 743 785 1067 483 4 285 872 176 1446 254 Legs 3 | . . . . . . . 3 . . . . . . . . . . Wheels 3056 | . 279 530 218 809 . . . . . . 414 735 71 . . . . Hover . | . . . . . . . . . . . . . . . . . . Flight . | . . . . . . . . . . . . . . . . . . Fastest Speed 50 | 50 160 200 215 175 240 240 240 240 237 231 150 150 160 240 157 154 240 Average Speed 218 | 153 177 209 215 176 240 240 246 240 238 235 203 164 223 240 157 225 242 Slowest Speed 750 | 160 320 215 215 320 240 240 750 320 245 317 465 320 392 240 157 240 480 Overloaded Moves . | . . . . . . . . . . . . . . . . . . Propulsion Burnouts . | . . . . . . . . . . . . . . . . . . Robots Hopped . | . . . . . . . . . . . . . . . . . . Potential Cave-ins . | . . . . . . . . . . . . . . . . . . Cave-ins Triggered . | . . . . . . . . . . . . . . . . . . Exploration Rate (%) 56 | 6 96 92 42 99 64 71 68 57 17 92 23 92 10 86 5 95 10 Regions Visited 17 Branch Regions 3 Pre-discovered Areas . | . . . . . . . . . . . . . . . . . . Known Exits Taken 6 | . . . . . 1 . 1 . 1 . 1 . 1 . 1 . . Unknown Exits Taken 5 | 1 1 1 1 1 . . . . . . . . . . . . . Scrap Searched 3 | . . 1 . 2 . . . . . . . . . . . . . Spaces Dug 3 | . . . . . . . 2 . . . . . . . . . 1 Terrain Destroyed 115 | . 2 . . . 11 22 11 . 5 8 3 44 2 . 1 2 4 Melee 3 | . . . . . . . 2 . . . . . . . . . 1 Projectile 37 | . . . . . 1 2 9 . 5 8 3 1 2 . 1 2 3 AOE 75 | . 2 . . . 10 20 . . . . . 43 . . . . . Terrain Rammed . | . . . . . . . . . . . . . . . . . . Walls Destroyed . | . . . . . . . . . . . . . . . . . . Machines Disabled . | . . . . . . . . . . . . . . . . . . Actions | -11 -10 -10 -10 -9 -8 -8 -8 -8 -7 -7 -7 -7 -6 -6 -5 -5 -5 --------- Run | Yrd Mat Min Exi Min Mat Gar Mat Gar Fac Gar Fac Gar Fac Gar Fac Gar Fac Total 14755 | 111 897 573 222 842 1310 926 1175 835 940 1225 1026 910 396 1079 197 1757 334 Wait 999 | . 45 22 . 2 252 57 181 2 83 37 55 24 . 49 16 134 40 Move 12152 | 83 767 529 217 815 832 754 828 742 785 1066 897 737 355 871 175 1445 254 Hop . | . . . . . . . . . . . . . . . . . . Pick Up 183 | 8 18 2 3 3 28 8 10 9 10 23 9 16 8 7 1 20 . Fast Attach 50 | 7 2 . . . 2 4 7 1 2 7 8 1 3 . . 6 . Attach 78 | . 1 2 . 2 17 6 5 4 3 4 11 3 4 1 2 7 6 Detach 16 | . 1 . . . 2 . 1 1 . 2 4 . 2 . . 3 . Swap 130 | . 7 2 . 1 14 12 20 12 15 2 7 13 5 5 1 7 7 Drop 143 | . 6 . 2 1 21 7 18 5 14 19 7 14 10 6 . 13 . Fire 755 | 13 50 16 . 15 141 52 102 36 27 35 13 58 7 59 2 103 26 Melee 47 | . . . . . . 10 2 15 1 . 13 . . . . 5 1 Ram 3 | . . . . 3 . . . . . . . . . . . . . Kick . | . . . . . . . . . . . . . . . . . . Crush 2 | . . . . . 1 . 1 . . . . . . . . . . Escape Stasis 69 | . . . . . . 14 . 8 . 16 2 3 2 10 . 14 . Rewire 128 | . . . . . . 2 . . . 14 . 41 . 71 . . . Trap . | . . . . . . . . . . . . . . . . . . Miscellaneous . | . . . . . . . . . . . . . . . . . . Route ------- -11/Scrapyard -10/Materials (discovered 6 exits: [*Mat x3] / [*Min x2] / [*Sub]) -10/Mines (discovered 3 exits: [*Mat x2] / *Exi) -10/Exiles -9/Mines (discovered 2 exits: *Mat x2) -8/Materials (discovered 4 exits: *Fac x2 / [*Sto] / Gar) -8/Garrison (discovered 4 exits: *Mat x4) -8/Materials (discovered 5 exits: *Fac x3 / [*Sto] / Gar) -8/Garrison -7/Factory (discovered 2 exits: [*Low] / Gar) -7/Garrison (discovered 3 exits: *Fac x3) -7/Factory (discovered 2 exits: *Fac / Gar) -7/Garrison (discovered 3 exits: *Fac x3) -6/Factory -6/Garrison (discovered 3 exits: *Fac x3) -5/Factory (discovered 2 exits: [*Fac] / Gar) -5/Garrison (discovered 4 exits: *Fac x4) -5/Factory History --------- Turn | Location | Event 12 | -11/Scrapyard | Discovered new exit (range 13) 186 | -11/Scrapyard | Entered Materials 187 | -10/Materials | Met a group of wandering Federalists 301 | -10/Materials | Build established: Mutant 328 | -10/Materials | Lost 5 allies 501 | -10/Materials | Discovered new exit (range 15) 749 | -10/Materials | Discovered new exit (range 5) 988 | -10/Materials | Discovered new exit (range 16) 1004 | -10/Materials | Central database locked down 1041 | -10/Materials | Repaired Lgt. Treads 1161 | -10/Materials | Discovered new exit (range 9) 1221 | -10/Materials | Discovered new exit (range 14) 1554 | -10/Materials | Discovered new exit (range 8) 1776 | -10/Materials | Entered Mines 1901 | -10/Mines | Assembled infested the area 2091 | -10/Mines | Core integrity fell below 50% 2246 | -10/Mines | A weapon hastily lodged in a ceiling crevice suddenly fell to the ground 2348 | -10/Mines | Learned 2 Materials zone layouts 2473 | -10/Mines | Learned Materials trap positions 2605 | -10/Mines | Learned location of 1 exit from Materials 2811 | -10/Mines | Discovered new exit (range 9) 2869 | -10/Mines | Discovered new exit (range 5) 2901 | -10/Mines | Discovered new exit (range 5) 2964 | -10/Mines | Entered Exiles 2964 | -10/Exiles | Accompanied by 2 allies 2994 | -10/Exiles | Led the pair of lost Derelicts to a safe place 3025 | -10/Exiles | Met 8R-AWN 3050 | -10/Exiles | Met EX-HEX 3117 | -10/Exiles | Met EX-BIN 3147 | -10/Exiles | Aligned with FarCom system 3149 | -10/Exiles | Given EX-Vault access code 3199 | -10/Exiles | Opened EX-Vault 3215 | -10/Exiles | Found AWS/Gauss 3257 | -10/Exiles | Warned to stay clear of 0b10 Research branches 3401 | -10/Exiles | Discovered new exit (range 15) 3435 | -10/Exiles | Left Exiles lab with AWS/Gauss 3435 | -10/Exiles | Entered Mines 3626 | -9/Mines | Discovered new exit (range 5) 3752 | -9/Mines | Discovered new exit (range 13) 3948 | -9/Mines | Learned Materials stockpile data 3976 | -9/Mines | Learned Materials stockpile data 4113 | -9/Mines | Found a hidden stash of uninstalled traps 4934 | -9/Mines | Entered Materials 4934 | -8/Materials | Evolved 4 slots: Propulsion x1, Utility x3 4935 | -8/Materials | Identified exit to Factory 4937 | -8/Materials | Loaded intel: 14 trap records 5241 | -8/Materials | Build established: Skirmisher 5895 | -8/Materials | Build established: Scavenger-Skirmisher 6723 | -8/Materials | Build established: Scavenger-Mutant 6914 | -8/Materials | Garrison activated, responded to threat 7131 | -8/Materials | Discovered new exit (range 6) 7381 | -8/Materials | Garrison activated, responded to threat 7672 | -8/Materials | Identified exit to Garrison 7674 | -8/Materials | Entered Garrison 7720 | -8/Garrison | Triggered checkpoint 7778 | -8/Garrison | Garrison Relay disabled 7904 | -8/Garrison | Triggered checkpoint 8045 | -8/Garrison | Discovered new exit (range 5) 8062 | -8/Garrison | Lost 3 parts (1p1n1u) 8180 | -8/Garrison | Triggered checkpoint 8295 | -8/Garrison | Discovered new exit (range 12) 8406 | -8/Garrison | Triggered checkpoint 8437 | -8/Garrison | Build established: Mutant 8476 | -8/Garrison | Garrison Relay disabled 8700 | -8/Garrison | Triggered checkpoint 8784 | -8/Garrison | Discovered new exit (range 15) 8785 | -8/Garrison | Build established: Scavenger-Mutant 8872 | -8/Garrison | Triggered checkpoint 8904 | -8/Garrison | Garrison Relay disabled 9027 | -8/Garrison | Triggered checkpoint 9128 | -8/Garrison | Discovered new exit (range 8) 9166 | -8/Garrison | Discovered new exit (range 52) 9166 | -8/Garrison | Discovered new exit (range 43) 9166 | -8/Garrison | Discovered new exit (range 6) 9166 | -8/Garrison | Discovered new exit (range 65) 9246 | -8/Garrison | Installed Relay Interface Framework 9625 | -8/Garrison | Expanded RIF knowledge: Signal Jamming 9757 | -8/Garrison | Entered Materials 9814 | -8/Materials | Core integrity fell below 50% 9814 | -8/Materials | Garrison activated, responded to threat 10174 | -8/Materials | Repaired Broken Med. Treads 10491 | -8/Materials | Garrison activated, responded to threat 10871 | -8/Materials | Discovered exit to Factory (range 6) 11379 | -8/Materials | Discovered exit to Factory (range 5) 11789 | -8/Materials | Discovered new exit (range 14) 11812 | -8/Materials | Build established: Mutant 11960 | -8/Materials | Discovered exit to Factory (range 9) 12004 | -8/Materials | Core integrity fell below 20% 12329 | -8/Materials | Build established: Scavenger-Mutant 12338 | -8/Materials | Identified exit to Garrison 12338 | -8/Materials | Entered Garrison 12464 | -8/Garrison | Garrison Relay disabled 12672 | -8/Garrison | Triggered checkpoint 12739 | -8/Garrison | Expanded RIF knowledge: Program Shield 12757 | -8/Garrison | Garrison Relay disabled 13092 | -8/Garrison | Build established: Bothacker-Mutant 13144 | -8/Garrison | Triggered checkpoint 13260 | -8/Garrison | Triggered checkpoint 13344 | -8/Garrison | Garrison Relay disabled 13489 | -8/Garrison | Discovered exit to Factory (range 3) 13760 | -8/Garrison | Expanded RIF knowledge: Structural Interface 14280 | -8/Garrison | Entered Factory 14280 | -7/Factory | Accompanied by 4 allies 14280 | -7/Factory | Evolved 2 slots: Propulsion x1, Weapon x1 14962 | -7/Factory | Discovered new exit (range 3) 15157 | -7/Factory | Build established: Bothacker-Skirmisher 16007 | -7/Factory | Garrison activated, responded to threat 16360 | -7/Factory | Identified exit to Garrison 16360 | -7/Factory | Entered Garrison 16411 | -7/Garrison | Heavy support dispatched to Factory 16701 | -7/Garrison | Garrison Relay disabled 17048 | -7/Garrison | Triggered checkpoint 17102 | -7/Garrison | Triggered checkpoint 17166 | -7/Garrison | Lost 3 parts (1u2w) 17279 | -7/Garrison | Garrison Relay disabled 17364 | -7/Garrison | Discovered new exit (range 11) 17567 | -7/Garrison | Garrison Relay disabled 17575 | -7/Garrison | Build established: Botlord-Skirmisher 17623 | -7/Garrison | Discovered new exit (range 15) 17979 | -7/Garrison | Expanded RIF knowledge: Coupler Efficiency 17993 | -7/Garrison | Discovered new exit (range 10) 18104 | -7/Garrison | Triggered checkpoint 18160 | -7/Garrison | Triggered checkpoint 18189 | -7/Garrison | Garrison Relay disabled 18452 | -7/Garrison | Triggered checkpoint 18511 | -7/Garrison | Garrison Relay disabled 18582 | -7/Garrison | Build established: Botlord-Tank 18861 | -7/Garrison | P-60 Hacker assimilated allied Guardian 4d 19075 | -7/Garrison | Entered Factory 19875 | -7/Factory | First assault squad dispatched 20144 | -7/Factory | AWS/Gauss suddenly broke down 20296 | -7/Factory | Lost 7 parts (1p3n2u1w) 20506 | -7/Factory | Build established: Botlord-Mutant 20581 | -7/Factory | Discovered new exit (range 16) 21083 | -7/Factory | Identified exit to Garrison 21083 | -7/Factory | Entered Garrison 21269 | -7/Garrison | Garrison Relay disabled 21333 | -7/Garrison | Triggered checkpoint 21339 | -7/Garrison | Triggered checkpoint 21392 | -7/Garrison | Build established: Botlord-Tank 21393 | -7/Garrison | Triggered checkpoint 21418 | -7/Garrison | Core integrity fell below 50% 21445 | -7/Garrison | Lost 4 allies 21467 | -7/Garrison | Triggered checkpoint 21542 | -7/Garrison | Garrison Relay disabled 21559 | -7/Garrison | Triggered checkpoint 21617 | -7/Garrison | Discovered new exit (range 14) 21907 | -7/Garrison | Discovered new exit (range 12) 21953 | -7/Garrison | Triggered checkpoint 21989 | -7/Garrison | Garrison Relay disabled 22002 | -7/Garrison | Found embedded Infiltrators 22288 | -7/Garrison | Discovered new exit (range 8) 22305 | -7/Garrison | Expanded RIF knowledge: Patrol Navigation 22361 | -7/Garrison | Triggered checkpoint 22378 | -7/Garrison | Garrison Relay disabled 22471 | -7/Garrison | Build established: Botlord-Skirmisher 22529 | -7/Garrison | Entered Factory 22529 | -6/Factory | Accompanied by 7 allies 22529 | -6/Factory | Evolved 2 slots: Utility x2 22594 | -6/Factory | Fabricated Adv. Treads (x2) 22724 | -6/Factory | Lost 3 allies 22768 | -6/Factory | Lost 3 allies 23144 | -6/Factory | Spotted B-75 Beast 23163 | -6/Factory | Assimilated Beast 5a with formatsys_high 23246 | -6/Factory | Identified exit to Garrison 23366 | -6/Factory | Entered Garrison 23437 | -6/Garrison | Garrison Relay disabled 23590 | -6/Garrison | Expanded RIF knowledge: Hotswap 23680 | -6/Garrison | Triggered checkpoint 23902 | -6/Garrison | Spotted B-75 Beast 23972 | -6/Garrison | Triggered checkpoint 24143 | -6/Garrison | Found Relay Coupler [Proto] 24147 | -6/Garrison | Found Relay Coupler [Proto] 24151 | -6/Garrison | Found Relay Coupler [Proto] 24217 | -6/Garrison | Discovered new exit (range 10) 24244 | -6/Garrison | Triggered checkpoint 24415 | -6/Garrison | Found Relay Coupler [Proto] 24512 | -6/Garrison | Garrison Relay disabled 24737 | -6/Garrison | Triggered checkpoint 24977 | -6/Garrison | Discovered new exit (range 15) 25020 | -6/Garrison | Triggered checkpoint 25060 | -6/Garrison | Garrison Relay disabled 25182 | -6/Garrison | Triggered checkpoint 25216 | -6/Garrison | Discovered new exit (range 10) 25664 | -6/Garrison | Garrison Relay disabled 25768 | -6/Garrison | Entered Factory 25768 | -5/Factory | Accompanied by 17 allies 25768 | -5/Factory | Evolved 2 slots: Propulsion x1, Utility x1 25986 | -5/Factory | Lost 5 allies 25994 | -5/Factory | Discovered new exit (range 9) 26045 | -5/Factory | Identified exit to Garrison 26070 | -5/Factory | Entered Garrison 26070 | -5/Garrison | Accompanied by 10 allies 26156 | -5/Garrison | Lost 5 allies 26261 | -5/Garrison | Lost 5 allies 26300 | -5/Garrison | Triggered checkpoint 26379 | -5/Garrison | Garrison Relay disabled 26412 | -5/Garrison | Garrison Relay disabled 26588 | -5/Garrison | Spotted B-75 Beast 26598 | -5/Garrison | Assimilated Beast 6a with formatsys_high 26632 | -5/Garrison | Triggered checkpoint 26740 | -5/Garrison | Triggered checkpoint 26833 | -5/Garrison | Discovered new exit (range 12) 26864 | -5/Garrison | Triggered checkpoint 26932 | -5/Garrison | Triggered checkpoint 26988 | -5/Garrison | Discovered new exit (range 6) 26989 | -5/Garrison | Lost 3 allies 27322 | -5/Garrison | Garrison Relay disabled 27438 | -5/Garrison | Triggered checkpoint 27645 | -5/Garrison | Expanded RIF knowledge: Code Merge 27724 | -5/Garrison | Discovered new exit (range 3) 28047 | -5/Garrison | Garrison Relay disabled 28080 | -5/Garrison | Triggered checkpoint 28085 | -5/Garrison | Build established: Botlord-Mutant 28630 | -5/Garrison | Build established: Botlord-Tank 28935 | -5/Garrison | Discovered new exit (range 15) 28953 | -5/Garrison | Found embedded Infiltrators 29019 | -5/Garrison | Triggered checkpoint 29066 | -5/Garrison | Garrison Relay disabled 29480 | -5/Garrison | Triggered checkpoint 29826 | -5/Garrison | Entered Factory 30126 | -5/Factory | First assault squad dispatched 30494 | -5/Factory | System corruption reached 10% 30534 | -5/Factory | Core integrity fell below 50% 30559 | -5/Factory | Core integrity fell below 20% 30563 | -5/Factory | Destroyed by H-66 Slayer with Heavy Assault Rifle Last Messages --------------- 30555_ U-05 Engineer lays Concrete. 30555_ K-01 Serf collects debris. 30556_ I-47 Archangel distress signal jammed. 30556_ U-05 Engineer lays Concrete. 30557_ I-47 Archangel distress signal jammed. 30557_ K-01 Serf collects debris. 30557_ U-05 Engineer lays Concrete. 30558_ I-47 Archangel distress signal jammed. 30559_ Slug penetrates B-60 Warrior. 30559_ Penetrated by Slug. 30560_ I-47 Archangel distress signal jammed. 30560_ U-05 Engineer builds a Wall. 30561_ I-47 Archangel distress signal jammed. 30561_ U-05 Engineer lays Concrete. 30562_ I-47 Archangel distress signal jammed. 30562_ U-05 Engineer lays Concrete. 30563_ I-47 Archangel distress signal jammed. 30563_ Penetrated by Slug. [Achievement: 30k Club] Map ----- +----------------------------------------------------+ | ?????????# # ! ??? | | ?????????# """ """ """ """ # ???? | | ?????????# """ """ """ """ # ??? | | ?????????# """ """ """ """ # ??? | | ?????????# # #?? | | ?????????# ! [[ + #?# | | ?????????# [[ !# #?# | | ?????????##########+#############+################ | | ???????????????# # | | ???????????????# # | | ???????????????# # | | ???????????????# + | | ??? ???????????# # | | ?? ?#???????# ###################+### # | | ?? % %#[####### #???# # # | | ?? = [%% #???# # # | | ?# =%%=[=[ #???# # # | | ?# =! %[ #???# # # | | ?# ! % %k #???# # # | | ?# k #???# # # | | ????#+### = #???# # # | | ???? # ####################### # | | ?? + = h # | | ?? # u i p p # | | ????????# gghblk # | | ????????# uu @ + | | ????????# u= t A # | | ????????# %R########### T############+#### # | | ????????# %%#?????????####???????????????# # | | ????????# ?????????????????????????????# | | ??????? + ^^^ ?????????????????????????????# | | ??????" # ?????????????????????????????# | | ??????" # w?????????????????????????????+ | | ????????# ??????????????????????????????# | | ????????? ??????????????????????????????# | | ???????????????????????????????????????????# | | ???????????????????????????????????????????# | | ???????????????????????????????????????????# | | ???????????????????????????????????????????# | | ???????????????????????????????????????????# | | ???????????????????????????????????????????# | | ???????????????????????????????????????????# # | | ???????????????????????????????????????????# # | | ???????????????????????????????????????????# # | | ???????????????????????????????????????????+ # | | ???????????????????????????????????????????# # | | ???????????????????????????????????????????? ? | | ?????????????????????????????????????????????????? | | ?????????????????????????????????????????????????? | | ?????????????????????????????????????????????????? | +----------------------------------------------------+ Best States ------------- Heat Dissipation 59 Energy Generation 25 Energy Capacity 340 Matter Stores 300 Matter Capacity 500 Sight Range 16 Terrain Scan Range 16 Terrain Scan Density 10 Armor Coverage 600 Core Shielding 20 Propulsion Shielding 33 Evasion (%) 40 Recoil Reduction 5 Offensive Hacking 10 Relay Coupler Types 5 Relay Coupler Value 218 Item Schematics ----------------- Lgt. Armor Plating | -8/Materials | Scanalyzed Adv. Treads | -7/Factory | Scanalyzed Imp. Medium Armor Plating | -6/Factory | Scanalyzed Robot Schematics ------------------ None Fabricated ------------ Adv. Treads | x2 | -6/Factory Repaired ---------- Lgt. Treads | 24% | -10/Materials Med. Treads | 20% | -8/Materials | Broken Alien Tech Used ----------------- None Achievements -------------- 30k Club Backstab Challenges ------------ None Game ------ Seed PitchforkMetaMount Manual? 0 Play Time 02:51:14 Cumulative 46.1 hours Start 2025.06.26 @ 15:31:35 End 2025.06.27 @ 19:41:05 Sessions 9 Manual Loads 0 Difficulty Rogue Special Mode None Game No. 42 Rogue 42 Adventurer 0 Explorer 0 Win Type - Total 0 Types 0/0/0/0/0/0/0/0/0/0 Lore% 25 Gallery% 30 Achievement% 33 Wizard Run 0 Options --------- Layout 1 ASCII 0 Keyboard 1 Movement Arrows Keybinds 0 Fullscreen 1 Font 24/Smallcaps Map View 50x40 Zoom Use 0% Tactical HUD 1 Map Filters NONE Filters NONE Steam 1 RUN: dc7ebd54-e68d-4469-a859-79cd1a0d5236